bitfinex/quotes_BTCUSD_20251011
["timestamp","ask_amount","ask_price","bid_price","bid_amount"]
[1760216326077,0.23885849,110440.0,110420.0,0.18112608]
[1760216326315,0.33674849,110440.0,110420.0,0.18112608]
[1760216327487,0.33774849,110440.0,110410.0,0.25955987]
[1760216327688,0.33774849,110440.0,110410.0,0.25971102]
[1760216327932,0.18111041,110430.0,110410.0,0.25971102]
[1760216328136,0.32771072,110430.0,110410.0,0.25971102]
[1760216328343,0.32771072,110430.0,110410.0,0.06951163]
[1760216328541,0.2298366,110420.0,110410.0,0.03266163]
[1760216328965,0.04871,110420.0,110410.0,0.21380464]
[1760216329172,0.2298366,110420.0,110410.0,0.03266163]
[1760216329606,0.6316666,110420.0,110410.0,0.03266163]
[1760216330428,0.87643425,110430.0,110410.0,0.31081464]
[1760216330429,0.04871,110430.0,110410.0,0.31081464]
[1760216330630,0.5698259,110430.0,110410.0,0.31081464]
[1760216330858,0.0023738,110420.0,110410.0,0.31081464]
[1760216331081,0.0023738,110420.0,110410.0,1.05214817]
[1760216333407,0.31046662,110450.0,110430.0,0.1811102]
[1760216333627,0.30141103,110450.0,110430.0,0.2179602]
[1760216333844,0.22978741,110450.0,110430.0,0.2179602]
[1760216334280,0.04871,110450.0,110430.0,0.2179602]
[1760216334498,0.23884712,110460.0,110440.0,0.2412538]
[1760216334730,0.002,110450.0,110440.0,0.2412538]
[1760216334951,0.002,110450.0,110440.0,0.92471733]
[1760216335171,0.002,110450.0,110440.0,0.2781038]
[1760216335655,0.002,110450.0,110440.0,0.09701]
[1760216335656,0.18307741,110450.0,110440.0,0.09701]
[1760216335863,0.18307741,110450.0,110440.0,0.03685]
[1760216336074,0.18207741,110450.0,110440.0,0.03685]
[1760216336279,0.34079741,110450.0,110430.0,0.22701571]
[1760216336497,0.18107741,110450.0,110430.0,0.21795752]
[1760216336723,0.04871,110450.0,110440.0,0.1810938]
[1760216337282,0.1810938,110440.0,110420.0,0.03685]
[1760216337491,0.2298038,110440.0,110430.0,0.1811102]
[1760216337646,0.18107741,110450.0,110430.0,0.3359902]
[1760216337853,0.18107741,110450.0,110440.0,0.03685]
[1760216338084,0.23882497,110460.0,110440.0,0.94282671]
[1760216338309,0.23882497,110460.0,110440.0,0.2781038]
[1760216338509,0.18107741,110450.0,110440.0,0.03685]
[1760216338915,0.23882497,110460.0,110440.0,0.2412538]
[1760216339768,0.23882577,110460.0,110440.0,0.2412538]
[1760216339880,0.04871,110460.0,110450.0,0.18107741]
[1760216340087,0.04871,110460.0,110450.0,0.21792741]
[1760216340728,0.04871,110470.0,110450.0,0.92470094]
[1760216340942,0.00015132,110470.0,110460.0,0.86452454]
[1760216341149,0.00015132,110470.0,110460.0,0.21791101]
[1760216341353,0.00015132,110470.0,110460.0,0.27807101]
[1760216341565,0.00311668,110470.0,110460.0,0.27807101]
[1760216342269,0.2912213,110470.0,110450.0,0.03685]
[1760216342485,0.04569,110460.0,110440.0,0.22699811]
[1760216342698,0.22675101,110460.0,110440.0,0.22699811]
[1760216342911,0.23593817,110470.0,110450.0,0.28440741]
[1760216343162,0.00015132,110470.0,110460.0,0.18106101]
[1760216343364,0.00015132,110470.0,110460.0,0.89415454]
[1760216343578,0.23883594,110490.0,110470.0,0.18104462]
[1760216343781,0.24727293,110490.0,110470.0,0.22274462]
[1760216344190,0.33780293,110490.0,110470.0,0.22274228]
[1760216344402,0.18102824,110480.0,110470.0,0.0417]
[1760216344825,0.22671824,110480.0,110470.0,0.22274462]
[1760216345032,0.04569,110480.0,110470.0,0.22274462]
[1760216345459,0.23883594,110490.0,110470.0,0.28922462]
[1760216345668,0.24828005,110490.0,110470.0,0.28922462]
[1760216345872,0.22671824,110480.0,110470.0,0.0417]
[1760216346119,0.32936594,110490.0,110470.0,0.22274462]
[1760216346320,0.33781164,110490.0,110470.0,0.22274462]
[1760216347898,0.06620629,110490.0,110470.0,0.22274462]
[1760216348045,0.2472202,110490.0,110470.0,0.22274462]
[1760216348457,0.00355813,110480.0,110470.0,0.96435815]
[1760216348633,0.00355813,110480.0,110470.0,1.03083815]
[1760216349864,0.00355813,110480.0,110470.0,1.12036767]
[1760216350576,0.00355813,110480.0,110470.0,1.12236767]
[1760216350763,0.00355813,110480.0,110470.0,1.03283815]
[1760216351180,0.00355813,110480.0,110470.0,0.29122462]
[1760216351390,0.00355813,110480.0,110470.0,0.38622462]
[1760216352493,0.00355813,110480.0,110470.0,0.81575414]
[1760216352717,1.75202715,110500.0,110490.0,0.52101185]
[1760216352963,1.15585351,110500.0,110490.0,1.71341434]
[1760216353186,1.15585351,110500.0,110490.0,1.83841432]
[1760216353187,0.82267302,110500.0,110490.0,1.83841432]
[1760216353405,0.5185176,110500.0,110490.0,1.86856622]
[1760216353625,0.46576622,110500.0,110490.0,1.86856622]
[1760216353878,0.37470095,110500.0,110490.0,1.86856622]
[1760216354097,1e-08,110520.0,110510.0,0.30597907]
[1760216354306,1e-08,110520.0,110510.0,2.04005156]
[1760216354534,1e-08,110520.0,110510.0,1.13550859]
[1760216355610,1e-08,110520.0,110510.0,1.13750859]
[1760216355840,1e-08,110520.0,110510.0,1.13950859]
[1760216356545,0.0002,110550.0,110540.0,0.52092998]
[1760216356769,0.00070419,110550.0,110540.0,0.6104595]
[1760216357434,0.00070419,110550.0,110540.0,1.51500247]
[1760216357868,1e-08,110550.0,110540.0,1.51500247]
[1760216358130,1e-08,110550.0,110540.0,1.61600246]
[1760216358807,1e-08,110550.0,110540.0,1.62501193]
[1760216359254,0.00414739,110550.0,110540.0,1.62601193]
[1760216359477,0.00414739,110550.0,110540.0,0.72046896]
[1760216359679,0.00414739,110550.0,110540.0,1.89639193]
[1760216359885,0.00414739,110550.0,110540.0,1.89539193]
[1760216360089,1e-08,110550.0,110540.0,1.92039192]
[1760216360302,1e-08,110550.0,110540.0,1.92239192]
[1760216360504,1e-08,110550.0,110540.0,1.95254382]
[1760216360712,0.0002,110570.0,110560.0,0.18089725]
[1760216360927,0.0002,110570.0,110560.0,1.82435974]
[1760216360928,0.00035119,110570.0,110560.0,1.82435974]
[1760216361134,0.00035119,110570.0,110560.0,0.94481676]
[1760216361338,0.00035119,110570.0,110560.0,1.84935973]
[1760216361545,0.00035119,110570.0,110560.0,1.82435974]
[1760216362166,0.00035119,110570.0,110560.0,0.91981677]
[1760216362381,0.00035119,110570.0,110560.0,1.82635974]
[1760216362591,0.00035119,110570.0,110560.0,1.82835974]
[1760216365652,0.00035119,110570.0,110560.0,0.92381677]
[1760216365852,0.00035119,110570.0,110560.0,1.82835974]
[1760216366281,0.00153557,110570.0,110560.0,1.82835974]
[1760216366683,0.00153557,110570.0,110560.0,0.58381677]
[1760216366907,0.00153557,110570.0,110560.0,1.82835974]
[1760216367519,0.00153557,110570.0,110560.0,1.82635974]
[1760216367718,0.00153557,110570.0,110560.0,1.82435974]
[1760216367931,0.00153557,110570.0,110560.0,1.82535974]
[1760216368128,0.00153557,110570.0,110560.0,0.83228725]
[1760216368334,0.00153557,110570.0,110560.0,0.31039]
[1760216368546,0.00153557,110570.0,110560.0,0.49228725]
[1760216368758,0.00153557,110570.0,110560.0,0.49128725]
[1760216368959,0.00153557,110570.0,110560.0,0.31039]
[1760216369169,0.00153557,110570.0,110560.0,0.31139]
[1760216369372,0.05055557,110570.0,110560.0,0.31139]
[1760216369579,0.11341557,110570.0,110560.0,0.31139]
[1760216369798,0.29429645,110570.0,110560.0,0.31139]
[1760216370011,0.32444835,110570.0,110560.0,0.31139]
[1760216370220,0.00153557,110570.0,110560.0,0.49228725]
[1760216370421,0.42004835,110570.0,110560.0,0.31139]
[1760216370628,0.42004835,110570.0,110560.0,0.30939]
[1760216371060,0.42004835,110570.0,110560.0,0.31039]
[1760216371479,0.42004835,110570.0,110560.0,0.30939]
[1760216373965,0.42004835,110570.0,110540.0,0.00097312]
[1760216373966,0.18091361,110550.0,110540.0,0.00097312]
[1760216374174,0.22883361,110550.0,110540.0,0.00097312]
[1760216374391,1.66025848,110550.0,110540.0,0.00097312]
[1760216375243,0.55111462,110520.0,110510.0,0.07162362]
[1760216375659,0.18099547,110500.0,110490.0,0.10962362]
[1760216375868,0.27688737,110500.0,110490.0,0.10962362]
[1760216376075,0.41713737,110500.0,110490.0,0.038]
[1760216376302,0.41713737,110500.0,110470.0,0.11346585]
[1760216376303,0.21117233,110490.0,110460.0,0.03279]
[1760216376519,0.04824239,110480.0,110470.0,0.07162362]
[1760216376723,0.0301519,110480.0,110470.0,0.21286462]
[1760216376930,0.04824239,110480.0,110470.0,0.03182]
[1760216377114,0.22927063,110480.0,110470.0,0.03182]
[1760216377394,0.21118014,110480.0,110470.0,0.03182]
[1760216378247,0.25910014,110480.0,110470.0,0.03182]
[1760216378453,0.21118014,110480.0,110470.0,0.03182]
[1760216378668,0.32484014,110480.0,110470.0,0.001]
[1760216378920,0.41717014,110480.0,110470.0,0.001]
[1760216379140,0.47345326,110480.0,110470.0,0.001]
[1760216379373,0.41717014,110480.0,110470.0,0.001]
[1760216380695,0.0301519,110480.0,110470.0,0.09817]
[1760216380907,0.34293063,110480.0,110460.0,0.03232419]
[1760216381111,0.41717014,110480.0,110460.0,0.03232419]
[1760216381321,0.32484014,110480.0,110460.0,0.21338517]
[1760216381737,0.18104462,110470.0,110460.0,0.03232419]
[1760216381943,0.22896462,110470.0,110460.0,0.03232419]
[1760216382148,0.18104462,110470.0,110460.0,0.03232419]
[1760216382357,0.25910014,110480.0,110460.0,0.2133852]
[1760216383046,0.25910059,110480.0,110460.0,0.2133852]
[1760216383288,0.18101207,110490.0,110470.0,0.33398462]
[1760216383507,0.21116397,110490.0,110480.0,0.03279]
[1760216383751,0.22892008,110500.0,110480.0,0.28753721]
[1760216383967,0.22892008,110500.0,110480.0,0.27624772]
[1760216384174,0.22891547,110500.0,110490.0,0.03182]
[1760216384406,0.24906737,110500.0,110480.0,0.27624772]
[1760216384633,0.43738424,110490.0,110470.0,0.19104447]
[1760216384840,0.25981014,110480.0,110470.0,0.01]
[1760216385089,0.0787819,110480.0,110470.0,0.01]
[1760216385304,0.07305669,110550.0,110470.0,1.65917073]
[1760216385512,0.00097308,110550.0,110540.0,0.02795]
[1760216385724,0.21137308,110550.0,110530.0,0.03279]
[1760216385976,0.21137308,110550.0,110510.0,0.02795]
[1760216385977,0.23860983,110540.0,110510.0,0.02795]
[1760216386184,0.23860983,110540.0,110510.0,0.18097864]
[1760216386185,0.04863,110520.0,110510.0,0.18097864]
[1760216386395,0.04998862,110520.0,110510.0,0.18097864]
[1760216386605,0.00135862,110520.0,110510.0,0.20892864]
[1760216386833,0.03151052,110520.0,110510.0,0.20943283]
[1760216387099,0.0787819,110520.0,110510.0,0.18148328]
[1760216387345,0.03151052,110520.0,110510.0,0.18148328]
[1760216387611,0.0301519,110520.0,110510.0,0.18148328]
[1760216387860,0.12602661,110530.0,110510.0,0.00050419]
[1760216388058,0.04863,110530.0,110520.0,0.18096272]
[1760216389530,0.22957634,110530.0,110510.0,0.21333039]
[1760216389736,0.32777634,110530.0,110510.0,0.21333039]
[1760216389943,0.04863,110520.0,110510.0,0.00050419]
[1760216390155,0.04863,110520.0,110510.0,0.18148328]
[1760216390537,0.22959272,110520.0,110510.0,0.00228185]
[1760216390996,0.04863,110520.0,110510.0,0.18326094]
[1760216391196,0.22957634,110530.0,110510.0,0.21511094]
[1760216391412,0.32777634,110530.0,110510.0,0.21433328]
[1760216391826,0.22957634,110530.0,110510.0,0.21433328]
[1760216392243,0.22957634,110530.0,110510.0,0.21233328]
[1760216392451,0.32777634,110530.0,110510.0,0.21233328]
[1760216393299,0.32777634,110530.0,110510.0,0.03135419]
[1760216393504,0.22959272,110520.0,110510.0,0.03135419]
[1760216393626,0.04863,110520.0,110510.0,0.21233328]
[1760216393847,0.22959272,110520.0,110510.0,0.03135419]
[1760216394048,0.40469343,110520.0,110510.0,0.00050419]
[1760216395132,0.74469343,110520.0,110510.0,0.00150419]
[1760216395339,0.74469343,110520.0,110510.0,0.00050419]
[1760216396184,0.69794462,110520.0,110510.0,0.00150419]
[1760216396672,0.69794462,110520.0,110510.0,0.00050419]
[1760216396903,0.69894462,110520.0,110510.0,0.00050419]
[1760216397125,0.69894462,110520.0,110510.0,0.00228185]
[1760216397126,1.60448759,110520.0,110510.0,0.00228185]
[1760216397817,1.60348759,110520.0,110510.0,0.00228185]
[1760216397985,1.69220693,110520.0,110510.0,0.00228185]
[1760216398186,1.60348759,110520.0,110510.0,0.00228185]
[1760216398547,1.60448759,110520.0,110510.0,0.00228185]
[1760216399584,0.69994462,110520.0,110510.0,0.00228185]
[1760216399988,1.60448759,110520.0,110510.0,0.00228185]
[1760216400209,1.6236906,110520.0,110510.0,0.00228185]
[1760216400426,1.69320693,110520.0,110510.0,0.00228185]
[1760216400862,1.60448759,110520.0,110510.0,0.00228185]
[1760216401490,1.62369896,110520.0,110510.0,0.00228185]
[1760216401703,0.71915599,110520.0,110510.0,0.00228185]
[1760216401930,0.69994462,110520.0,110510.0,0.00228185]
[1760216402204,1.62370093,110520.0,110510.0,0.00228185]
[1760216402428,1.72086245,110520.0,110510.0,0.00228185]
[1760216402922,1.76967682,110520.0,110510.0,0.00228185]
[1760216405170,0.34900606,110520.0,110510.0,0.00228185]
[1760216405400,0.29253272,110520.0,110510.0,0.00228185]
[1760216405823,0.63253272,110520.0,110510.0,0.00228185]
[1760216406034,0.66268462,110520.0,110510.0,0.00228185]
[1760216406234,0.63253272,110520.0,110510.0,0.00228185]
[1760216406460,0.71874363,110520.0,110510.0,0.00228185]
[1760216406674,1.6534385,110520.0,110510.0,0.00228185]
[1760216406881,1.68112822,110520.0,110510.0,0.00228185]
[1760216407306,0.18102824,110480.0,110470.0,0.07162362]
[1760216407529,0.18102824,110480.0,110470.0,0.10491494]
[1760216407757,0.18102824,110480.0,110470.0,0.20694578]
[1760216407970,0.18102824,110480.0,110470.0,0.09488132]
[1760216408383,0.18102824,110480.0,110470.0,0.09588132]
[1760216408620,0.23637181,110500.0,110470.0,0.39804022]
[1760216408849,0.23731085,110520.0,110490.0,1.13128482]
[1760216409073,0.18097991,110510.0,110500.0,0.05088954]
[1760216409279,0.18097991,110510.0,110500.0,0.09438]
[1760216409489,0.22727991,110510.0,110500.0,0.03279]
[1760216409691,0.18099547,110500.0,110490.0,0.04573]
[1760216409896,0.23631085,110520.0,110490.0,0.20128]
[1760216410113,0.18198647,110510.0,110500.0,0.03279]
[1760216410543,0.18098647,110510.0,110500.0,0.18834]
[1760216410764,0.3299562,110510.0,110480.0,0.02795]
[1760216410988,0.22731185,110490.0,110480.0,0.03314]
[1760216411481,0.22731185,110490.0,110470.0,0.04588132]
[1760216411482,0.18102824,110480.0,110470.0,0.04588132]
[1760216411709,0.28826824,110480.0,110470.0,0.00015132]
[1760216412572,0.22732824,110480.0,110470.0,0.10747132]
[1760216412986,0.22732824,110480.0,110470.0,0.1098427]
[1760216413415,0.22732824,110480.0,110470.0,0.0492527]
[1760216413651,0.36402225,110480.0,110470.0,0.0045227]
[1760216413856,0.31855824,110480.0,110470.0,0.0045227]
[1760216414065,0.18102824,110480.0,110470.0,0.1118427]
[1760216414283,0.18102824,110480.0,110470.0,0.0502527]
[1760216414503,0.28826824,110480.0,110470.0,0.0492527]
[1760216414712,0.22732824,110480.0,110470.0,0.0492527]
[1760216415126,0.22732824,110480.0,110470.0,0.1108427]
[1760216415409,0.18102824,110480.0,110470.0,0.2048027]
[1760216415613,0.22732824,110480.0,110470.0,0.0482527]
[1760216416061,0.18102824,110480.0,110470.0,0.1098427]
[1760216416302,0.26816225,110480.0,110470.0,0.0025227]
[1760216416525,1.03541605,110480.0,110470.0,0.0025227]
[1760216416969,1.38465404,110480.0,110470.0,0.0025227]
[1760216417402,1.40387954,110480.0,110470.0,0.0025227]
[1760216418234,1.42887953,110480.0,110470.0,0.0025227]
[1760216418869,0.1810938,110440.0,110430.0,0.11002362]
[1760216419107,0.2273938,110440.0,110430.0,0.07217494]
[1760216419300,0.3487757,110440.0,110430.0,0.00055132]
[1760216420351,1.42336694,110440.0,110430.0,0.00055132]
[1760216420994,1.3346476,110440.0,110430.0,0.00055132]
[1760216421201,0.3487757,110440.0,110430.0,0.00055132]
[1760216421865,0.3497757,110440.0,110430.0,0.00055132]
[1760216423599,0.9956476,110440.0,110430.0,0.00055132]
[1760216424445,0.9956476,110440.0,110430.0,0.00292401]
[1760216424658,0.43849504,110440.0,110430.0,0.00292401]
[1760216424867,1.08436694,110440.0,110430.0,0.00292401]
[1760216425090,0.43849504,110440.0,110430.0,0.00292401]
[1760216425536,0.03463,110440.0,110430.0,0.09730401]
[1760216425747,0.03463,110440.0,110430.0,0.00292401]
[1760216425748,0.3526638,110440.0,110430.0,0.00292401]
[1760216425954,0.2618938,110440.0,110430.0,0.00292401]
[1760216426154,0.1820938,110440.0,110430.0,0.27841421]
[1760216426369,0.001,110440.0,110430.0,0.19126401]
[1760216426577,0.001,110440.0,110430.0,1.01824611]
[1760216426831,0.001,110440.0,110430.0,0.83713591]
[1760216427047,0.001,110440.0,110430.0,0.37237421]
[1760216427256,0.001,110440.0,110430.0,1.01824611]
[1760216427467,0.001,110440.0,110430.0,1.35824611]
[1760216427671,0.1820021,110480.0,110450.0,0.18107225]
[1760216427906,0.1820021,110480.0,110470.0,0.04654]
[1760216428150,0.00097386,110480.0,110470.0,0.28917462]
[1760216428369,0.1820021,110480.0,110470.0,0.10813]
[1760216429025,0.2619321,110480.0,110470.0,0.04654]
[1760216429247,0.18104462,110470.0,110460.0,0.22760101]
[1760216429472,0.18106101,110460.0,110450.0,0.22761741]
[1760216429698,0.22734462,110470.0,110450.0,0.38331873]
[1760216429912,0.22734462,110470.0,110460.0,0.04654]
[1760216430131,0.18106101,110460.0,110450.0,0.10828132]
[1760216430350,0.22734462,110470.0,110450.0,0.28935873]
[1760216430562,0.22734462,110470.0,110460.0,0.04654]
[1760216430810,0.18104462,110470.0,110460.0,0.04654]
[1760216431042,0.19105351,110480.0,110460.0,0.38314528]
[1760216431276,0.19105351,110480.0,110470.0,0.93898098]
[1760216431277,0.00097386,110480.0,110470.0,0.93898098]
[1760216431504,0.00097386,110480.0,110470.0,0.98246652]
[1760216432648,0.00097386,110480.0,110470.0,1.32246652]
[1760216432892,0.00097386,110480.0,110470.0,1.41199604]
[1760216433122,0.00097386,110480.0,110470.0,1.41299604]
[1760216433806,0.00097386,110480.0,110470.0,1.41199604]
[1760216434046,0.00097386,110480.0,110470.0,0.76712414]
[1760216434282,0.00097386,110480.0,110470.0,1.41199604]
[1760216434505,0.00097386,110480.0,110470.0,0.76812414]
[1760216434747,0.00097386,110480.0,110470.0,1.41399604]
[1760216434954,0.00097386,110480.0,110470.0,1.41499604]
[1760216435426,0.00097386,110480.0,110470.0,1.45203604]
[1760216436260,0.00097386,110480.0,110470.0,1.45403604]
[1760216441008,0.00097386,110480.0,110470.0,0.80816414]
[1760216441223,0.00097386,110480.0,110470.0,1.45403604]
[1760216442316,0.04413805,110510.0,110470.0,0.46816414]
[1760216442539,0.18099743,110500.0,110480.0,0.96492154]
[1760216442756,0.18099743,110500.0,110490.0,0.04654]
[1760216442987,0.23019743,110500.0,110490.0,0.04654]
[1760216443205,0.18101185,110490.0,110480.0,0.04654]
[1760216443428,0.18101185,110490.0,110480.0,0.10861]
[1760216443889,0.18101185,110490.0,110480.0,0.10961]
[1760216444093,0.32978114,110510.0,110480.0,0.28963824]
[1760216444094,0.23923114,110510.0,110480.0,0.28963824]
[1760216444331,0.00015117,110510.0,110500.0,0.22753547]
[1760216444540,0.00015117,110510.0,110500.0,0.38109547]
[1760216445456,0.00015117,110510.0,110500.0,1.02696737]
[1760216445687,0.00015117,110510.0,110500.0,2.10236879]
[1760216445909,0.00015117,110510.0,110500.0,2.10336879]
[1760216446132,0.00015117,110510.0,110500.0,2.13352069]
[1760216447016,0.00015117,110510.0,110500.0,2.13452069]
[1760216447230,0.00015117,110510.0,110500.0,2.13352069]
[1760216447447,1e-08,110510.0,110500.0,2.13252069]
[1760216447878,1e-08,110510.0,110500.0,2.13352069]
[1760216448101,1e-08,110510.0,110500.0,2.13552069]
[1760216448350,1e-08,110510.0,110500.0,2.13452069]
[1760216448566,1e-08,110510.0,110500.0,1.48864879]
[1760216448811,1e-08,110510.0,110500.0,1.45849689]
[1760216449036,1e-08,110510.0,110500.0,1.46049689]
[1760216449461,1e-08,110510.0,110500.0,1.1899719]
[1760216449679,1e-08,110510.0,110500.0,1.37096737]
[1760216449937,1e-08,110510.0,110500.0,0.45261]
[1760216449938,0.1809791,110510.0,110500.0,0.45261]
[1760216450174,0.1809791,110510.0,110500.0,0.11261]
[1760216450411,0.1809791,110510.0,110500.0,0.2021]
[1760216450643,0.1809791,110510.0,110500.0,0.2011]
[1760216450865,0.2529691,110510.0,110500.0,0.04754]
[1760216451087,0.2529691,110510.0,110500.0,0.002]
[1760216451088,0.3428391,110510.0,110500.0,0.002]
[1760216451521,0.1809791,110510.0,110500.0,0.06407]
[1760216451732,0.1809791,110510.0,110500.0,0.002]
[1760216451939,0.1809791,110510.0,110500.0,0.001]
[1760216451940,0.2905791,110510.0,110500.0,0.001]
[1760216452169,0.989091,110510.0,110500.0,0.001]
[1760216452404,0.19006719,110500.0,110470.0,0.15717753]
[1760216452606,0.19006719,110500.0,110490.0,0.06207]
[1760216452818,0.19006719,110500.0,110490.0,0.10861]
[1760216453036,0.00904977,110500.0,110490.0,0.10861]
[1760216453260,0.18099547,110500.0,110490.0,0.39921303]
[1760216453474,0.1809791,110510.0,110500.0,0.18099547]
[1760216453475,0.0017781,110510.0,110500.0,0.18099547]
[1760216453741,0.18275719,110510.0,110500.0,0.2001]
[1760216453956,0.18275719,110510.0,110500.0,0.10861]
[1760216454186,0.18275719,110510.0,110500.0,0.2001]
[1760216454417,0.0017781,110510.0,110500.0,1.02696737]
[1760216454638,0.18275719,110510.0,110500.0,0.10861]
[1760216455081,0.18099547,110500.0,110490.0,0.04654]
[1760216455288,0.18099547,110500.0,110490.0,0.2001]
[1760216456227,0.1809791,110510.0,110490.0,1.02698375]
[1760216456440,0.1809791,110510.0,110500.0,0.09149]
[1760216456653,1e-08,110510.0,110500.0,0.98042737]
[1760216457744,0.1809791,110510.0,110500.0,0.15456]
[1760216457952,0.1809791,110510.0,110500.0,0.15556]
[1760216458596,0.1809791,110510.0,110500.0,0.06407]
[1760216459028,1e-08,110510.0,110500.0,0.33655547]
[1760216459446,0.1809791,110510.0,110500.0,0.15556]
[1760216460314,0.1809791,110510.0,110500.0,0.33655547]
[1760216461161,0.1809791,110510.0,110500.0,0.15556]
[1760216461611,0.18275719,110510.0,110500.0,0.33655547]
[1760216462033,0.0017781,110510.0,110500.0,0.33655547]
[1760216462247,0.0017781,110510.0,110500.0,0.98242737]
[1760216462698,0.0017781,110510.0,110500.0,0.02527]
[1760216462699,0.22997719,110510.0,110500.0,0.02527]
[1760216462932,0.18275719,110510.0,110500.0,0.09192]
[1760216463138,0.34803719,110510.0,110500.0,0.002]
[1760216463349,0.43675653,110510.0,110500.0,0.002]
[1760216463558,1.45278033,110510.0,110500.0,0.002]
[1760216464211,0.18102824,110480.0,110470.0,0.15717753]
[1760216464649,0.18102824,110480.0,110470.0,0.15220391]
[1760216465752,0.18102824,110480.0,110470.0,0.08555391]
[1760216465753,0.22849824,110480.0,110470.0,0.08555391]
[1760216465963,0.34861824,110480.0,110470.0,0.03901391]
[1760216466182,0.34861824,110480.0,110470.0,0.04001391]
[1760216466845,0.34861824,110480.0,110470.0,0.03901391]
[1760216467047,0.35111824,110480.0,110470.0,0.03901391]
[1760216467269,0.18352824,110480.0,110470.0,0.12963391]
[1760216467497,0.18352824,110480.0,110470.0,1.05311043]
[1760216467498,0.0025,110480.0,110470.0,1.05311043]
[1760216468144,0.18352824,110480.0,110470.0,1.05311043]
[1760216468343,0.18352824,110480.0,110470.0,0.12963391]
[1760216468650,0.25674824,110480.0,110470.0,0.03901391]
[1760216468861,0.22438411,110480.0,110470.0,0.03901391]
[1760216469251,0.22438411,110480.0,110470.0,0.04001391]
[1760216469496,0.18102824,110480.0,110470.0,0.15249391]
[1760216469704,0.22848237,110490.0,110470.0,1.09307489]
[1760216469705,0.0005928,110490.0,110470.0,1.09307489]
[1760216469905,0.18102824,110480.0,110470.0,0.24805391]
[1760216470080,0.18102824,110480.0,110470.0,0.15149391]
[1760216470323,0.31060853,110480.0,110470.0,0.03901391]
[1760216470502,0.20915824,110480.0,110470.0,0.04001391]
[1760216470749,0.26959824,110480.0,110470.0,0.03901391]
[1760216480545,0.26959824,110480.0,110470.0,0.00097391]
[1760216481031,0.22907465,110490.0,110470.0,1.2960124]
[1760216481249,0.18160465,110490.0,110480.0,0.30956824]
[1760216481466,0.18160465,110490.0,110480.0,0.19519]
[1760216481682,0.28951465,110490.0,110480.0,0.03198]
[1760216481902,0.18102824,110480.0,110470.0,0.04680391]
[1760216482111,0.22849824,110480.0,110470.0,0.04680391]
[1760216482322,0.28893824,110480.0,110470.0,0.04680391]
[1760216482535,0.28893824,110480.0,110470.0,0.00097391]
[1760216482974,0.28893824,110480.0,110470.0,0.04680391]
[1760216483422,0.22907465,110490.0,110470.0,0.11345391]
[1760216483636,0.18102824,110480.0,110470.0,0.31260299]
[1760216483852,0.18102824,110480.0,110470.0,0.29449853]
[1760216484286,0.18102824,110480.0,110470.0,0.39205853]
[1760216484551,0.18102824,110480.0,110470.0,0.21101391]
[1760216484760,0.18102824,110480.0,110470.0,0.21201391]
[1760216484968,0.22907465,110490.0,110470.0,0.21201391]
[1760216485216,0.28893824,110480.0,110470.0,0.04880391]
[1760216485634,0.18102824,110480.0,110470.0,0.11545391]
[1760216485851,0.18102824,110480.0,110470.0,0.11445391]
[1760216486066,0.18102824,110480.0,110470.0,0.21101391]
[1760216486283,0.18160465,110490.0,110470.0,0.39205853]
[1760216486501,0.18160465,110490.0,110480.0,0.12854]
[1760216486502,0.18161315,110490.0,110480.0,0.12854]
[1760216486717,0.0005928,110490.0,110480.0,1.23146841]
[1760216486943,0.0005928,110490.0,110480.0,1.62117211]
[1760216487169,1e-08,110510.0,110500.0,0.18099547]
[1760216487389,1e-08,110510.0,110500.0,1.47148934]
[1760216487629,0.07162362,110530.0,110520.0,1.08591659]
[1760216487850,0.07176051,110530.0,110520.0,0.18096272]
[1760216488079,0.00013689,110530.0,110520.0,0.37620272]
[1760216488348,0.00013689,110530.0,110510.0,0.03891]
[1760216488349,0.18096272,110520.0,110510.0,0.03891]
[1760216488563,0.18096272,110520.0,110510.0,0.10324]
[1760216488993,0.18097909,110510.0,110500.0,0.08558]
[1760216489208,0.18097909,110510.0,110500.0,0.08458]
[1760216489429,0.36844927,110510.0,110500.0,0.03904]
[1760216489871,0.32777909,110510.0,110500.0,0.03904]
[1760216490087,1.26288486,110510.0,110500.0,0.001]
[1760216490303,0.18102824,110480.0,110470.0,0.11053362]
[1760216490521,0.18102543,110490.0,110480.0,0.03891]
[1760216490741,0.19007131,110500.0,110480.0,0.37626824]
[1760216490952,0.19007131,110500.0,110490.0,0.06364118]
[1760216491164,0.19007131,110500.0,110490.0,0.04554]
[1760216491378,0.19007131,110500.0,110490.0,0.21997118]
[1760216491600,0.00013682,110500.0,110490.0,0.38288185]
[1760216491819,0.00013682,110500.0,110490.0,0.20187]
[1760216491820,0.18113229,110500.0,110490.0,0.20187]
[1760216492334,0.18113229,110500.0,110490.0,0.38288185]
[1760216492565,0.00013682,110500.0,110490.0,1.62783572]
[1760216492812,0.39918759,110550.0,110530.0,0.18093555]
[1760216492813,0.07162362,110550.0,110530.0,0.18093555]
[1760216493018,0.07212803,110550.0,110540.0,0.21094198]
[1760216493228,0.25304164,110550.0,110540.0,0.19998]
[1760216493443,0.00050441,110550.0,110540.0,0.38090998]
[1760216493658,0.18141802,110550.0,110540.0,0.19998]
[1760216494308,0.18141802,110550.0,110540.0,0.10221]
[1760216494745,1.13525189,110550.0,110510.0,0.03804]
[1760216494959,0.18096272,110520.0,110510.0,0.03804]
[1760216495187,0.22780272,110520.0,110510.0,0.03804]
[1760216495399,0.32075272,110520.0,110510.0,0.03804]
[1760216496281,0.23683647,110540.0,110510.0,0.41899909]
[1760216496514,0.23683647,110540.0,110520.0,0.04219]
[1760216496515,0.18094663,110530.0,110520.0,0.04219]
[1760216496725,0.18094663,110530.0,110520.0,0.10221]
[1760216497567,0.18094663,110530.0,110510.0,0.08123]
[1760216497568,0.18096272,110520.0,110510.0,0.08123]
[1760216497795,0.18096272,110520.0,110510.0,0.14125]
[1760216498006,0.18096272,110520.0,110510.0,0.14025]
[1760216498864,0.22782272,110520.0,110510.0,0.08023]
[1760216499285,0.18274057,110520.0,110510.0,0.08023]
[1760216499752,0.18274057,110520.0,110510.0,0.14025]
[1760216500536,0.18274057,110520.0,110510.0,0.08123]
[1760216500701,0.18274057,110520.0,110510.0,0.08223]
[1760216500908,0.18274057,110520.0,110510.0,0.24002]
[1760216501106,0.00177785,110520.0,110510.0,1.41548248]
[1760216501306,0.00050441,110550.0,110540.0,0.18092998]
[1760216501535,0.00050441,110550.0,110540.0,0.3419114]
[1760216501707,0.00050441,110550.0,110540.0,1.37450337]
[1760216502643,0.00050441,110550.0,110540.0,0.72001998]
[1760216503110,0.00050441,110550.0,110540.0,0.72101998]
[1760216503324,0.18141802,110550.0,110540.0,0.0413]
[1760216503586,0.18141802,110550.0,110540.0,0.22322998]